Workbook

Sheet Dashboard
M3: 2020
M4: JULIO | R4: Empresa - Sector | S4: Empresa - Sector
A5: Acumulado a: | B5: =M4 -> JULIO | E5: Datos acumulados | G5: Cuota Negocio / Total ASEMPLEO | J5: =empresa_ccaa!L5 -> iEMPRESA | L5: ¿▲"sin" mi Empresa? | S5: p.p.
A6: Total | B6: Facturación, € | D6: (a) | E6: =J5 -> iEMPRESA | I6: Cuota de Facturación | J6: ∆ | L6: (b) | M6: ∆ (a-b) | S6: Puntos porcentuales
B7: 2019 | C7: 2020 | D7: % i.a. | E7: =B7 -> 2019 | F7: =C7 -> 2020 | G7: % i.a. | H7: =E7 -> 2019 | I7: =F7 -> 2020 | J7: Dif.P.P. | L7: % i.a. | M7: Dif.P.P. | R7: Dif. Ritmo | S7: Importancia Relativa | V7: Empresa
A8: Nacional | B8: =empresa_ccaa!F12 -> 2414807826 | C8: =empresa_ccaa!G12 -> 2029308345 | D8: =((C8/B8)-1) -> -0.1596398174 | E8: =empresa_ccaa!K12 -> 36222117.39 | F8: =empresa_ccaa!L12 -> 32697937.14 | G8: =IF(E8>0,((F8/E8)-1),"n.a.") -> -0.0972936012 | H8: =E8/B8 -> 0.015 | I8: =F8/C8 -> 0.01611284811 | J8: =(I8-H8)*100 -> 0.1112848113 | L8: =((C8-F8)/(B8-E8))-1 -> -0.1605892522 | M8: =(D8-L8)*100 -> 0.09494347651 | R8: =IF(G8="n.a.","n.a.",(G8-D8)*100) -> 6.234621624 | S8: =empresa_ccaa!M12-empresa_ccaa!H12 -> 0 | U8: criterio_rank | V8: peso | W8: Comunidad | X8: % i.a. | Y8: Total_Regional
A9: ANDALUCIA | B9: =empresa_ccaa!F13 -> 199825095.5 | C9: =empresa_ccaa!G13 -> 186108785.7 | D9: =((C9/B9)-1) -> -0.06864157757 | E9: =empresa_ccaa!K13 -> 2997376.432 | F9: =empresa_ccaa!L13 -> 2977740.571 | G9: -0.006551016076 | H9: =E9/B9 -> 0.015 | I9: =F9/C9 -> 0.016 | J9: =(I9-H9)*100 -> 0.1 | L9: =((C9-F9)/(B9-E9))-1 -> -0.06958711912 | M9: 0.09455415456 | R9: =IF(G9="n.a.","n.a.",(G9-D9)*100) -> 6.20905615 | S9: =empresa_ccaa!M13-empresa_ccaa!H13 -> -0.0006423042907 | U9: =IF(V9=$V$27,1,0) -> 0 | V9: =I9 -> 0.016 | W9: =A9 -> ANDALUCIA | X9: =G9 -> -0.006551016076 | Y9: =D9 -> -0.06864157757
A10: ARAGON | B10: =empresa_ccaa!F14 -> 120275082.6 | C10: =empresa_ccaa!G14 -> 91943938.07 | D10: =((C10/B10)-1) -> -0.2355529004 | E10: =empresa_ccaa!K14 -> 1804126.239 | F10: =empresa_ccaa!L14 -> 1471103.009 | G10: -0.1845897604 | H10: 0.015 | I10: 0.016 | J10: 0.1 | L10: -0.2363289888 | M10: 0.0776088426 | R10: 5.096313998 | S10: =empresa_ccaa!M14-empresa_ccaa!H14 -> -0.0003173197102 | U10: =IF(V10=$V$27,1,0) -> 0 | V10: 0.016 | W10: ARAGON | X10: =G10 -> -0.1845897604 | Y10: =D10 -> -0.2355529004
A11: ASTURIAS | B11: =empresa_ccaa!F15 -> 39555211.98 | C11: =empresa_ccaa!G15 -> 35194606.28 | D11: -0.1102409893 | E11: =empresa_ccaa!K15 -> 593328.1797 | F11: =empresa_ccaa!L15 -> 563113.7004 | G11: -0.0509237219 | H11: 0.015 | I11: 0.016 | J11: 0.1 | L11: -0.1111442979 | M11: 0.09033086403 | R11: 5.931726738 | S11: =empresa_ccaa!M15-empresa_ccaa!H15 -> -0.0001214646936 | U11: 0 | V11: 0.016 | W11: ASTURIAS | X11: -0.0509237219 | Y11: -0.1102409893
A12: BALEARES | B12: =empresa_ccaa!F16 -> 10389206.71 | C12: =empresa_ccaa!G16 -> 4887464.596 | D12: -0.5295632541 | E12: =empresa_ccaa!K16 -> 155838.1006 | F12: =empresa_ccaa!L16 -> 78199.43354 | G12: =IF(E12>0,((F12/E12)-1),"n.a.") -> -0.4982008043 | H12: 0.015 | I12: 0.016 | J12: 0.1 | L12: -0.5300408548 | M12: 0.04776007573 | R12: 3.136244973 | S12: =empresa_ccaa!M16-empresa_ccaa!H16 -> -1.686776618e-05 | U12: 0 | V12: 0.016 | W12: BALEARES | X12: -0.4982008043 | Y12: -0.5295632541
A13: CANARIAS | B13: =empresa_ccaa!F17 -> 56189362.44 | C13: =empresa_ccaa!G17 -> 30896251.92 | D13: -0.4501405501 | E13: =empresa_ccaa!K17 -> 842840.4366 | F13: =empresa_ccaa!L17 -> 494340.0307 | G13: -0.4134832534 | H13: 0.015 | I13: 0.016 | J13: 0.1 | L13: -0.450698783 | M13: 0.05582329441 | R13: 3.665729666 | S13: =empresa_ccaa!M17-empresa_ccaa!H17 -> -0.0001066300825 | U13: 0 | V13: 0.016 | W13: CANARIAS | X13: -0.4134832534 | Y13: -0.4501405501
A14: CANTABRIA | B14: =empresa_ccaa!F18 -> 61408923.89 | C14: =empresa_ccaa!G18 -> 53744372.77 | D14: -0.1248116826 | E14: =empresa_ccaa!K18 -> 921133.8584 | F14: =empresa_ccaa!L18 -> 859909.9644 | G14: -0.06646579483 | H14: 0.015 | I14: 0.016 | J14: 0.1 | L14: -0.1257001987 | M14: 0.08885160582 | R14: 5.834588782 | S14: =empresa_ccaa!M18-empresa_ccaa!H18 -> -0.0001854842108 | U14: 0 | V14: 0.016 | W14: CANTABRIA | X14: -0.06646579483 | Y14: -0.1248116826
A15: CASTILLA-LA MANCHA | B15: =empresa_ccaa!F19 -> 103277001.6 | C15: =empresa_ccaa!G19 -> 108820511.1 | D15: 0.05367612717 | E15: =empresa_ccaa!K19 -> 1549155.024 | F15: =empresa_ccaa!L19 -> 1741128.177 | G15: 0.1239212023 | H15: 0.015 | I15: 0.016 | J15: 0.1 | L15: 0.05260640521 | M15: 0.1069721957 | R15: 7.024507514 | S15: =empresa_ccaa!M19-empresa_ccaa!H19 -> -0.0003755646512 | U15: 0 | V15: 0.016 | W15: CASTILLA-LA MANCHA | X15: 0.1239212023 | Y15: 0.05367612717
A16: CASTILLA Y LEÓN | B16: =empresa_ccaa!F20 -> 149447152 | C16: =empresa_ccaa!G20 -> 125158526.8 | D16: -0.1625231724 | E16: =empresa_ccaa!K20 -> 2241707.28 | F16: =empresa_ccaa!L20 -> 2002536.428 | G16: -0.1066913839 | H16: 0.015 | I16: 0.016 | J16: =(I16-H16)*100 -> 0.1 | L16: -0.1633734027 | M16: 0.08502302818 | R16: 5.583178851 | S16: =empresa_ccaa!M20-empresa_ccaa!H20 -> -0.0004319509069 | U16: 0 | V16: 0.016 | W16: CASTILLA Y LEÓN | X16: -0.1066913839 | Y16: -0.1625231724
A17: CATALUÑA | B17: =empresa_ccaa!F21 -> 579479966.7 | C17: =empresa_ccaa!G21 -> 458007236 | D17: -0.2096236932 | E17: =empresa_ccaa!K21 -> 8692199.501 | F17: =empresa_ccaa!L21 -> 7557119.393 | G17: =IF(E17>0,((F17/E17)-1),"n.a.") -> -0.1305860625 | H17: 0.015 | I17: 0.0165 | J17: =(I17-H17)*100 -> 0.15 | L17: -0.2108273119 | M17: 0.1203618741 | R17: 7.903763068 | S17: =empresa_ccaa!M21-empresa_ccaa!H21 -> 0.005422922087 | U17: =IF(V17=$V$27,1,0) -> 1 | V17: =I17 -> 0.0165 | W17: CATALUÑA | X17: -0.1305860625 | Y17: -0.2096236932
A18: COMUNIDAD VALENCIANA | B18: =empresa_ccaa!F22 -> 195389741.7 | C18: =empresa_ccaa!G22 -> 158863905.5 | D18: -0.1869383515 | E18: =empresa_ccaa!K22 -> 2930846.126 | F18: =empresa_ccaa!L22 -> 2541822.488 | G18: -0.1327342416 | H18: 0.015 | I18: 0.016 | J18: =(I18-H18)*100 -> 0.1 | L18: -0.1877637948 | M18: 0.0825443298 | R18: 5.42041099 | S18: =empresa_ccaa!M22-empresa_ccaa!H22 -> -0.0005482759332 | U18: 0 | V18: 0.016 | W18: COMUNIDAD VALENCIANA | X18: -0.1327342416 | Y18: -0.1869383515
A19: EXTREMADURA | B19: =empresa_ccaa!F23 -> 14950140.23 | C19: =empresa_ccaa!G23 -> 18024224.32 | D19: 0.2056224254 | E19: =empresa_ccaa!K23 -> 224252.1034 | F19: =empresa_ccaa!L23 -> 288387.5891 | G19: 0.2859972537 | H19: 0.015 | I19: 0.016 | J19: 0.1 | L19: 0.2043984432 | M19: 0.1223982158 | R19: 8.037482836 | S19: =empresa_ccaa!M23-empresa_ccaa!H23 -> -6.220575012e-05 | U19: 0 | V19: 0.016 | W19: EXTREMADURA | X19: 0.2859972537 | Y19: 0.2056224254
A20: GALICIA | B20: =empresa_ccaa!F24 -> 122362049.6 | C20: =empresa_ccaa!G24 -> 116754204.3 | D20: -0.04582993899 | E20: =empresa_ccaa!K24 -> 1835430.743 | F20: =empresa_ccaa!L24 -> 1868067.269 | G20: 0.01778139841 | H20: 0.015 | I20: 0.016 | J20: 0.1 | L20: -0.04679863956 | M20: 0.09687005696 | R20: 6.36113374 | S20: =empresa_ccaa!M24-empresa_ccaa!H24 -> -0.0004029456541 | U20: 0 | V20: 0.016 | W20: GALICIA | X20: 0.01778139841 | Y20: -0.04582993899
A21: MADRID | B21: =empresa_ccaa!F25 -> 387592997.3 | C21: =empresa_ccaa!G25 -> 328177056.5 | D21: -0.1532946705 | E21: =empresa_ccaa!K25 -> 5813894.959 | F21: =empresa_ccaa!L25 -> 5250832.903 | G21: -0.09684764858 | H21: 0.015 | I21: 0.016 | J21: 0.1 | L21: -0.1541542699 | M21: 0.08595993192 | R21: 5.644702196 | S21: =empresa_ccaa!M25-empresa_ccaa!H25 -> -0.001132614619 | U21: 0 | V21: 0.016 | W21: MADRID | X21: -0.09684764858 | Y21: -0.1532946705
A22: MURCIA | B22: =empresa_ccaa!F26 -> 148798097.4 | C22: =empresa_ccaa!G26 -> 151365347 | D22: 0.01725324237 | E22: =empresa_ccaa!K26 -> 2231971.461 | F22: =empresa_ccaa!L26 -> 2421845.552 | G22: 0.08507012519 | H22: 0.015 | I22: 0.016 | J22: 0.1 | L22: 0.01622049796 | M22: 0.1032744408 | R22: 6.781688282 | S22: =empresa_ccaa!M26-empresa_ccaa!H26 -> -0.0005223966805 | U22: 0 | V22: 0.016 | W22: MURCIA | X22: 0.08507012519 | Y22: 0.01725324237
A23: NAVARRA | B23: =empresa_ccaa!F27 -> 86095776.48 | C23: =empresa_ccaa!G27 -> 62326241.59 | D23: -0.276082473 | E23: =empresa_ccaa!K27 -> 1291436.647 | F23: =empresa_ccaa!L27 -> 997219.8655 | G23: -0.2278213045 | H23: 0.015 | I23: 0.016 | J23: 0.1 | L23: -0.2768174147 | M23: 0.07349416518 | R23: 4.826116847 | S23: =empresa_ccaa!M27-empresa_ccaa!H27 -> -0.000215102217 | U23: 0 | V23: 0.016 | W23: NAVARRA | X23: -0.2278213045 | Y23: -0.276082473
A24: PAIS VASCO | B24: =empresa_ccaa!F28 -> 116880744.1 | C24: =empresa_ccaa!G28 -> 80802645.28 | D24: -0.3086744453 | E24: =empresa_ccaa!K28 -> 1753211.162 | F24: =empresa_ccaa!L28 -> 1292842.324 | G24: -0.262586075 | H24: 0.015 | I24: 0.016 | J24: 0.1 | L24: -0.3093762987 | M24: 0.0701853355 | R24: 4.608837031 | S24: =empresa_ccaa!M28-empresa_ccaa!H28 -> -0.0002788685422 | U24: 0 | V24: 0.016 | W24: PAIS VASCO | X24: -0.262586075 | Y24: -0.3086744453
A25: RIOJA (LA) | B25: =empresa_ccaa!F29 -> 22891275.54 | C25: =empresa_ccaa!G29 -> 18233027.73 | D25: -0.2034944624 | E25: =empresa_ccaa!K29 -> 343369.1331 | F25: =empresa_ccaa!L29 -> 291728.4437 | G25: -0.1503940933 | H25: 0.015 | I25: 0.016 | J25: 0.1 | L25: -0.2043030975 | M25: 0.08086350635 | R25: 5.310036917 | S25: =empresa_ccaa!M29-empresa_ccaa!H29 -> -6.292637878e-05 | U25: 0 | V25: 0.016 | W25: RIOJA (LA) | X25: -0.1503940933 | Y25: -0.2034944624
U26: codifico=1 | V26: máximo
U27: =DMAX(U8:W25,V8,U8:U25)*1 -> 0.0165 | V27: =MAX(V9:V25) -> 0.0165
J28: =I6 -> Cuota de Facturación | T28: geo data | U28: =VLOOKUP(1,U8:Y25,3,0) -> CATALUÑA
M29: =I7 -> 2020 | U29: el dato a buscar debe estar en la primera columna.
B30: % i.a. | F30: % i.a. | U30: =VLOOKUP(1,U8:Y25,4,0)*1 -> -0.1305860625
B31: =C7 -> 2020 | F31: =B31 -> 2020 | U31: =VLOOKUP(1,U8:Y25,5,0)*1 -> -0.2096236932
B32: Total | F32: Empresa | J32: =J5 -> iEMPRESA
M33: Ámbito
A34: Ámbito | B34: =F34 -> Nacional | F34: =J34 -> Nacional | J34: Nacional | M34: Nacional
J38: =U28 -> CATALUÑA | M38: CCAA
M39: Líder para la
B40: % i.a. | F40: % i.a. | M40: Empresa
B41: =B31 -> 2020 | F41: =B41 -> 2020
B42: Total | F42: Empresa | J42: =J32 -> iEMPRESA
A44: Ámbito | B44: =F44 -> CATALUÑA | F44: =J44 -> CATALUÑA | J44: =J38 -> CATALUÑA
A48: Fuente: Cifras consolidadas del sector. Valores absolutos 2015-2020 y cifras de evolución de 2016 a la fecha. ASEMPLEO ©.
A49: Nota de Confidencialidad: Este informe comparativo contiene datos redondeados que son ficticeos y serán reemplazados por los que la Empresa introduzca en "empresa_ccaa".

Sheet Ayuda y Version (hidden)
G2: Versión de plantilla: | H2: 2.5

Sheet pBlock (hidden)
B4: Block Test
B5: Info1 | C5: Info2

Sheet pAccel0 (hidden)
A1: Gauge Configuration | O1: Gauge Configuration | Z1: Gauge Configuration | AK1: Gauge Configuration
F2: Decal | T2: Decal | AE2: Decal | AP2: Decal
A3: Title: | B3: =Dashboard!#REF! ->  | F3: 0 | O3: Title: | P3: =pAccel0!B3 ->  | T3: 0 | Z3: Title: | AA3: Empresa | AE3: 0 | AK3: Title: | AL3: CCAA | AP3: 0
A4: Real Value: | B4: =Dashboard!#REF! ->  | O4: Real Value: | P4: =Dashboard!I8 -> 0.01611284811 | Z4: Real Value: | AA4: =Dashboard!I8 -> 0.01611284811 | AK4: Real Value: | AL4: =Dashboard!U27 -> 0.0165
A6: Color bands | O6: Color bands | Z6: Color bands | AK6: Color bands
A7: Red: | B7: 2 | O7: Red: | P7: 2 | Z7: Red: | AA7: 2 | AK7: Red: | AL7: 2
A8: Yellow: | B8: 15 | O8: Yellow: | P8: 15 | Z8: Yellow: | AA8: 15 | AK8: Yellow: | AL8: 15
A9: Green: | B9: 23 | O9: Green: | P9: 23 | Z9: Green: | AA9: 23 | AK9: Green: | AL9: 23
A11: Advanced Parameters | O11: Advanced Parameters | Z11: Advanced Parameters | AK11: Advanced Parameters
B12: Value to 100% | C12: =IF(ISERROR((B4-F3/100)*B27),0,(B4-F3/100)*B27) -> 0 | P12: Value to 100% | Q12: =IF(ISERROR((P4-T3/100)*P27),0,(P4-T3/100)*P27) -> 0.04028212028 | AA12: Value to 100% | AB12: =IF(ISERROR((AA4-AE3/100)*AA27),0,(AA4-AE3/100)*AA27) -> 0.04028212028 | AL12: Value to 100% | AM12: =IF(ISERROR((AL4-AP3/100)*AL27),0,(AL4-AP3/100)*AL27) -> 0.04125
B13: Relative value | C13: =IF(C12>100%,102%,IF(C12<0%,-2%,C12))*1.506-0.253 -> -0.253 | P13: Relative value | Q13: =IF(Q12>100%,102%,IF(Q12<0%,-2%,Q12))*1.506-0.253 -> -0.1923351269 | AA13: Relative value | AB13: =IF(AB12>100%,102%,IF(AB12<0%,-2%,AB12))*1.506-0.253 -> -0.1923351269 | AL13: Relative value | AM13: =IF(AM12>100%,102%,IF(AM12<0%,-2%,AM12))*1.506-0.253 -> -0.1908775
A15: Angle | C15: =C13*PI() -> -0.7948229414 | O15: Angle | Q15: =Q13*PI() -> -0.6042386216 | Z15: Angle | AB15: =AB13*PI() -> -0.6042386216 | AK15: Angle | AM15: =AM13*PI() -> -0.5996593517
A16: x | B16: 0 | C16: =-COS(C15) -> -0.7004111508 | O16: x | P16: 0 | Q16: =-COS(Q15) -> -0.8229349024 | Z16: x | AA16: 0 | AB16: =-COS(AB15) -> -0.8229349024 | AK16: x | AL16: 0 | AM16: =-COS(AM15) -> -0.8255279115
A17: y | B17: 0 | C17: =SIN(C15) -> -0.7137396023 | O17: y | P17: 0 | Q17: =SIN(Q15) -> -0.5681356761 | Z17: y | AA17: 0 | AB17: =SIN(AB15) -> -0.5681356761 | AK17: y | AL17: 0 | AM17: =SIN(AM15) -> -0.5643612915
D19: Value | E19: Label | R19: Value | S19: Label | AC19: Value | AD19: Label | AN19: Value | AO19: Label
C20: 70 | D20: 10 | E20: =B26+F3 -> 4 | Q20: 70 | R20: 10 | S20: =P26+T3 -> 4 | AB20: 70 | AC20: 10 | AD20: =AA26+AE3 -> 4 | AM20: 70 | AN20: 10 | AO20: =AL26+AP3 -> 4
C21: =B7*$C$20/$B$25 -> 3.5 | D21: 10 | E21: =E20+$B$26 -> 8 | Q21: =P7*$C$20/$B$25 -> 3.5 | R21: 10 | S21: =S20+$B$26 -> 8 | AB21: =AA7*$AB$20/$AA$25 -> 3.5 | AC21: 10 | AD21: =AD20+$AA$26 -> 8 | AM21: =AL7*$AM$20/$AL$25 -> 3.5 | AN21: 10 | AO21: =AO20+$AL$26 -> 8
C22: =B8*$C$20/$B$25 -> 26.25 | D22: 10 | E22: 12 | Q22: =P8*$C$20/$B$25 -> 26.25 | R22: 10 | S22: 12 | AB22: =AA8*$AB$20/$AA$25 -> 26.25 | AC22: 10 | AD22: 12 | AM22: =AL8*$AM$20/$AL$25 -> 26.25 | AN22: 10 | AO22: =AO21+$AL$26 -> 12
C23: =B9*$C$20/$B$25 -> 40.25 | D23: 10 | E23: 16 | Q23: =P9*$C$20/$B$25 -> 40.25 | R23: 10 | S23: 16 | AB23: =AA9*$AB$20/$AA$25 -> 40.25 | AC23: 10 | AD23: 16 | AM23: 40.25 | AN23: 10 | AO23: 16
A24: White | C24: 23 | D24: 10 | E24: 20 | O24: White | Q24: 23 | R24: 10 | S24: 20 | Z24: White | AB24: 23 | AC24: 10 | AD24: 20 | AK24: White | AM24: 23 | AN24: 10 | AO24: 20
A25: Total | B25: =SUM(B7:B24) -> 40 | C25: =SUM(C21:C24) -> 93 | D25: 10 | E25: 24 | O25: Total | P25: =SUM(P7:P24) -> 40 | Q25: =SUM(Q21:Q24) -> 93 | R25: 10 | S25: 24 | Z25: Total | AA25: =SUM(AA7:AA24) -> 40 | AB25: =SUM(AB21:AB24) -> 93 | AC25: 10 | AD25: 24 | AK25: Total | AL25: =SUM(AL7:AL24) -> 40 | AM25: =SUM(AM21:AM24) -> 93 | AN25: 10 | AO25: 24
A26: Increment | B26: =B25/10 -> 4 | D26: 10 | E26: 28 | O26: Increment | P26: =P25/10 -> 4 | R26: 10 | S26: 28 | Z26: Increment | AA26: =AA25/10 -> 4 | AC26: 10 | AD26: 28 | AK26: Increment | AL26: =AL25/10 -> 4 | AN26: 10 | AO26: 28
A27: Conversion | B27: =100/B25 -> 2.5 | D27: 10 | E27: 32 | O27: Conversion | P27: =100/P25 -> 2.5 | R27: 10 | S27: 32 | Z27: Conversion | AA27: =100/AA25 -> 2.5 | AC27: 10 | AD27: 32 | AK27: Conversion | AL27: =100/AL25 -> 2.5 | AN27: 10 | AO27: 32
D28: 10 | E28: 36 | R28: 10 | S28: 36 | AC28: 10 | AD28: 36 | AN28: 10 | AO28: 36
D29: 10 | E29: 40 | R29: 10 | S29: 40 | AC29: 10 | AD29: 40 | AN29: 10 | AO29: 40
D30: 33 | E30: =F3 -> 0 | R30: 33 | S30: =T3 -> 0 | AC30: 33 | AD30: =AE3 -> 0 | AN30: 33 | AO30: =AP3 -> 0

Sheet pAccel1 (hidden)
A1: Gauge Configuration | Q1: Gauge Configuration | X1: Gauge Configuration | AE1: Gauge Configuration | AL1: Gauge Configuration | AS1: Gauge Configuration | AZ1: Gauge Configuration | BG1: Gauge Configuration
F2: Decal | V2: Decal | AC2: Decal | AJ2: Decal | AQ2: Decal | AX2: Decal | BE2: Decal | BL2: Decal
A3: Title: | B3: CPDs | F3: 100 | Q3: Title: | R3: Facturación | V3: 100 | X3: Title: | Y3: CPDs | AC3: 100 | AE3: Title: | AF3: Facturación | AJ3: 100 | AL3: Title: | AM3: Facturación | AQ3: 100 | AS3: Title: | AT3: Facturación | AX3: 100 | AZ3: Title: | BA3: Facturación | BE3: 100 | BG3: Title: | BH3: Facturación | BL3: 100
A4: Real Value: | B4: =Dashboard!#REF! ->  | C4: =Dashboard!#REF! ->  | Q4: Real Value: | R4: =Dashboard!#REF! ->  | X4: Real Value: | Y4: =Dashboard!#REF! ->  | AE4: Real Value: | AF4: =Dashboard!#REF! ->  | AL4: Real Value: | AM4: =Dashboard!D8 -> -0.1596398174 | AS4: Real Value: | AT4: =Dashboard!$G$8 -> -0.0972936012 | AZ4: Real Value: | BA4: =Dashboard!U31 -> -0.2096236932 | BG4: Real Value: | BH4: =Dashboard!U30 -> -0.1305860625
A6: Color bands
A7: Red: | B7: -50
A8: Yellow: | B8: 0
A9: Green: | B9: 50
A11: Advanced Parameters | Q11: Advanced Parameters | X11: Advanced Parameters | AE11: Advanced Parameters | AL11: Advanced Parameters | AS11: Advanced Parameters | AZ11: Advanced Parameters | BG11: Advanced Parameters
B12: Value to 100% | C12: =IF(ISERROR((B4-F3/100)*B27),0,(B4-F3/100)*B27) -> 0 | E12: =IF(ISERROR((C4-F3/100)*B27),0,(C4-F3/100)*B27) -> 0 | R12: Value to 100% | S12: =IF(ISERROR((R4-V3/100)*R27),0,(R4-V3/100)*R27) -> 0 | Y12: Value to 100% | Z12: =IF(ISERROR((Y4-AC3/100)*Y27),0,(Y4-AC3/100)*Y27) -> 0 | AF12: Value to 100% | AG12: =IF(ISERROR((AF4-AJ3/100)*AF27),0,(AF4-AJ3/100)*AF27) -> 0 | AM12: Value to 100% | AN12: =IF(ISERROR((AM4-AQ3/100)*AM27),0,(AM4-AQ3/100)*AM27) -> -2.319279635 | AT12: Value to 100% | AU12: =IF(ISERROR((AT4-AX3/100)*AT27),0,(AT4-AX3/100)*AT27) -> -2.194587202 | BA12: Value to 100% | BB12: =IF(ISERROR((BA4-BE3/100)*BA27),0,(BA4-BE3/100)*BA27) -> -2.419247386 | BH12: Value to 100% | BI12: =IF(ISERROR((BH4-BL3/100)*BH27),0,(BH4-BL3/100)*BH27) -> -2.261172125
B13: Relative value | C13: =IF(B4<-100%,-100%,IF(B4>100%,100%,2*B4/1)) ->  | D13: ojo1, todo en porcentaje, por 2, y con 1 al final en lugar de 100. | E13: =IF(C4<-100%,-100%,IF(C4>100%,100%,2*C4/1)) ->  | I13: Todos los negritas tienen dato 50, en lugar de 100 para que la escala recorra menos. | R13: Relative value | S13: =IF(R4<-100%,-100%,IF(R4>100%,100%,2*R4/1)) ->  | Y13: Relative value | Z13: =IF(Y4<-100%,-100%,IF(Y4>100%,100%,2*Y4/1)) ->  | AF13: Relative value | AG13: =IF(AF4<-100%,-100%,IF(AF4>100%,100%,2*AF4/1)) ->  | AM13: Relative value | AN13: =IF(AM4<-100%,-100%,IF(AM4>100%,100%,2*AM4/1)) -> -0.3192796349 | AT13: Relative value | AU13: =IF(AT4<-100%,-100%,IF(AT4>100%,100%,2*AT4/1)) -> -0.1945872024 | BA13: Relative value | BB13: =IF(BA4<-100%,-100%,IF(BA4>100%,100%,2*BA4/1)) -> -0.4192473864 | BH13: Relative value | BI13: =IF(BH4<-100%,-100%,IF(BH4>100%,100%,2*BH4/1)) -> -0.261172125
A15: Angle | C15: =C13*PI()/2 ->  | E15: =E13*PI()/2 ->  | Q15: Angle | S15: =S13*PI()/2 ->  | X15: Angle | Z15: =Z13*PI()/2 ->  | AE15: Angle | AG15: =AG13*PI()/2 ->  | AL15: Angle | AN15: =AN13*PI()/2 -> -0.5015232777 | AS15: Angle | AU15: =AU13*PI()/2 -> -0.3056568628 | AZ15: Angle | BB15: =BB13*PI()/2 -> -0.6585522545 | BG15: Angle | BI15: =BI13*PI()/2 -> -0.4102482146
A16: x | B16: 0 | C16: =SIN(C15) ->  | D16: =B16 -> 0 | E16: =SIN(E15) ->  | Q16: x | R16: 0 | S16: =SIN(S15) ->  | X16: x | Y16: 0 | Z16: =SIN(Z15) ->  | AE16: x | AF16: 0 | AG16: =SIN(AG15) ->  | AL16: x | AM16: 0 | AN16: =SIN(AN15) -> -0.4807617838 | AS16: x | AT16: 0 | AU16: =SIN(AU15) -> -0.3009196569 | AZ16: x | BA16: 0 | BB16: =SIN(BB15) -> -0.6119725021 | BG16: x | BH16: 0 | BI16: =SIN(BI15) -> -0.3988369585
A17: y | B17: 0 | C17: =-COS(C15) ->  | D17: =B17 -> 0 | E17: =-COS(E15) ->  | Q17: y | R17: 0 | S17: =-COS(S15) ->  | X17: y | Y17: 0 | Z17: =-COS(Z15) ->  | AE17: y | AF17: 0 | AG17: =-COS(AG15) ->  | AL17: y | AM17: 0 | AN17: =-COS(AN15) -> -0.8768512458 | AS17: y | AT17: 0 | AU17: =-COS(AU15) -> -0.9536494954 | AZ17: y | BA17: 0 | BB17: =-COS(BB15) -> -0.7908790405 | BG17: y | BH17: 0 | BI17: =-COS(BI15) -> -0.9170218539
D19: Value | E19: Label
C20: 50 | D20: 0 | E20: 50
C21: =E21 -> 40 | D21: =D31/D33 -> 5 | E21: =E20+$B$26 -> 40
C22: =E22 -> 30 | D22: =D21 -> 5 | E22: =E21+$B$26 -> 30
C23: 20 | D23: =D22 -> 5 | E23: 20
A24: White | C24: 10 | D24: 5 | E24: 10 | Q24: White | X24: White | AE24: White | AL24: White | AS24: White | AZ24: White | BG24: White
A25: Total | B25: 50 | C25: 0 | D25: 5 | E25: 0 | Q25: Total | R25: 50 | X25: Total | Y25: 50 | AE25: Total | AF25: 50 | AL25: Total | AM25: 50 | AS25: Total | AT25: 50 | AZ25: Total | BA25: 50 | BG25: Total | BH25: 50
A26: Increment | B26: -10 | C26: -10 | D26: 5 | E26: -10 | Q26: Increment | R26: -10 | X26: Increment | Y26: -10 | AE26: Increment | AF26: -10 | AL26: Increment | AM26: -10 | AS26: Increment | AT26: -10 | AZ26: Increment | BA26: -10 | BG26: Increment | BH26: -10
A27: Conversion | B27: =100/B25 -> 2 | C27: -20 | D27: 5 | E27: -20 | Q27: Conversion | R27: =100/R25 -> 2 | X27: Conversion | Y27: =100/Y25 -> 2 | AE27: Conversion | AF27: =100/AF25 -> 2 | AL27: Conversion | AM27: =100/AM25 -> 2 | AS27: Conversion | AT27: =100/AT25 -> 2 | AZ27: Conversion | BA27: =100/BA25 -> 2 | BG27: Conversion | BH27: =100/BH25 -> 2
C28: -30 | D28: 5 | E28: -30
C29: -40 | D29: 5 | E29: -40
C30: -50 | D30: 5 | E30: -50
D31: 50
D33: 10
D35: =SUM(D20:D30) -> 50

Sheet empresa_ccaa
M3: =Dashboard!M3 -> 2020
M4: =Dashboard!M4 -> JULIO
K5: Empresa | L5: =L9 -> iEMPRESA
C9: Facturación, € | F9: ASEMPLEO | G9: ASEMPLEO | K9: Empresa = | L9: iEMPRESA
C10: Dato acumulado a | E10: =M4 -> JULIO | F10: =Dashboard!B7 -> 2019 | G10: =Dashboard!C7 -> 2020 | J10: Facturación | K10: =F10 -> 2019 | L10: =G10 -> 2020
H11: Estructura (%) | J11: Datos acumulados | M11: Estructura (%) | N11: check
F12: =E65 -> 2414807826 | G12: =B65 -> 2029308345 | H12: =G12/G$12 -> 1 | I12: TOTAL | K12: =SUM(K13:K29) -> 36222117.39 | L12: =SUM(L13:L29) -> 32697937.14 | M12: =L12/L$12 -> 1 | N12: =L12/K12-1 -> -0.0972936012
F13: 199825095.5 | G13: =B66 -> 186108785.7 | H13: =G13/G$12 -> 0.09171045203 | I13: ANDALUCIA | K13: =F13*0.015 -> 2997376.432 | L13: =G13*0.016 -> 2977740.571 | M13: =L13/L$12 -> 0.09106814774 | N13: =L13/K13-1 -> -0.006551016076
F14: 120275082.6 | G14: 91943938.07 | H14: =G14/G$12 -> 0.04530801753 | I14: ARAGON | K14: =F14*0.015 -> 1804126.239 | L14: =G14*0.016 -> 1471103.009 | M14: =L14/L$12 -> 0.04499069782 | N14: -0.1845897604
F15: 39555211.98 | G15: 35194606.28 | H15: 0.01734315357 | I15: ASTURIAS | K15: 593328.1797 | L15: 563113.7004 | M15: =L15/L$12 -> 0.01722168888 | N15: -0.0509237219
F16: 10389206.71 | G16: =B69 -> 4887464.596 | H16: 0.002408438623 | I16: BALEARES | K16: 155838.1006 | L16: 78199.43354 | M16: 0.002391570856 | N16: -0.4982008043
F17: 56189362.44 | G17: 30896251.92 | H17: 0.01522501595 | I17: CANARIAS | K17: 842840.4366 | L17: 494340.0307 | M17: 0.01511838587 | N17: -0.4134832534
F18: 61408923.89 | G18: 53744372.77 | H18: 0.02648408405 | I18: CANTABRIA | K18: 921133.8584 | L18: 859909.9644 | M18: 0.02629859984 | N18: -0.06646579483
F19: 103277001.6 | G19: 108820511.1 | H19: 0.05362443383 | I19: CASTILLA-LA MANCHA | K19: 1549155.024 | L19: 1741128.177 | M19: 0.05324886918 | N19: 0.1239212023
F20: 149447152 | G20: 125158526.8 | H20: 0.06167546054 | I20: CASTILLA Y LEÓN | K20: 2241707.28 | L20: 2002536.428 | M20: 0.06124350963 | N20: -0.1066913839
F21: 579479966.7 | G21: 458007236 | H21: 0.2256962265 | I21: CATALUÑA | K21: =F21*0.015 -> 8692199.501 | L21: =G21*0.0165 -> 7557119.393 | M21: =L21/L$12 -> 0.2311191486 | N21: -0.1305860625
F22: 195389741.7 | G22: 158863905.5 | H22: 0.07828475445 | I22: COMUNIDAD VALENCIANA | K22: =F22*0.015 -> 2930846.126 | L22: 2541822.488 | M22: 0.07773647852 | N22: -0.1327342416
F23: 14950140.23 | G23: 18024224.32 | H23: 0.008881954466 | I23: EXTREMADURA | K23: 224252.1034 | L23: 288387.5891 | M23: 0.008819748716 | N23: 0.2859972537
F24: 122362049.6 | G24: 116754204.3 | H24: 0.05753398913 | I24: GALICIA | K24: 1835430.743 | L24: 1868067.269 | M24: 0.05713104348 | N24: 0.01778139841
F25: 387592997.3 | G25: 328177056.5 | H25: 0.1617186748 | I25: MADRID | K25: 5813894.959 | L25: 5250832.903 | M25: 0.1605860602 | N25: -0.09684764858
F26: 148798097.4 | G26: 151365347 | H26: 0.07458962428 | I26: MURCIA | K26: 2231971.461 | L26: 2421845.552 | M26: 0.0740672276 | N26: 0.08507012519
F27: 86095776.48 | G27: 62326241.59 | H27: 0.03071304651 | I27: NAVARRA | K27: 1291436.647 | L27: 997219.8655 | M27: 0.03049794429 | N27: -0.2278213045
F28: 116880744.1 | G28: 80802645.28 | H28: 0.03981782535 | I28: PAIS VASCO | K28: 1753211.162 | L28: 1292842.324 | M28: 0.03953895681 | N28: -0.262586075
F29: 22891275.54 | G29: 18233027.73 | H29: 0.008984848345 | I29: RIOJA (LA) | K29: 343369.1331 | L29: 291728.4437 | M29: 0.008921921966 | N29: -0.1503940933
A31: Fuente: Cifras consolidadas del sector. ASEMPLEO ©.
A32: Nota de Confidencialidad: Este informe comparativo se genera con los datos propios de la Empresa.
A60: D03: | D60: D03: | G60: D03 : | H60: Variación Interanual (%)
A61: MES: | B61: ACUMULADO A LA FECHA | D61: =A61 -> MES: | E61: =B61 -> ACUMULADO A LA FECHA | G61: =D61 -> MES: | H61: Tasa % i.a.
B63: Facturación | E63: Facturación | H63: Facturación
I64: check
A65: TOTAL | B65: 2029308345 | D65: TOTAL | E65: 2414807826 | G65: TOTAL | H65: -0.1596398174 | I65: =B65/E65-1 -> -0.1596398174
A66: ANDALUCIA | B66: 186108785.7 | D66: ANDALUCIA | E66: 199825095.5 | G66: ANDALUCIA | H66: -0.06864157757 | I66: =B66/E66-1 -> -0.06864157757
A67: ARAGON | B67: 91943938.07 | D67: ARAGON | E67: 120275082.6 | G67: ARAGON | H67: -0.2355529004 | I67: -0.2355529004
A68: ASTURIAS | B68: 35194606.28 | D68: ASTURIAS | E68: 39555211.98 | G68: ASTURIAS | H68: -0.1102409893 | I68: -0.1102409893
A69: BALEARES | B69: 4887464.596 | D69: BALEARES | E69: 10389206.71 | G69: BALEARES | H69: -0.5295632541 | I69: -0.5295632541
A70: CANARIAS | B70: 30896251.92 | D70: CANARIAS | E70: 56189362.44 | G70: CANARIAS | H70: -0.4501405501 | I70: -0.4501405501
A71: CANTABRIA | B71: 53744372.77 | D71: CANTABRIA | E71: 61408923.89 | G71: CANTABRIA | H71: -0.1248116826 | I71: -0.1248116826
A72: CASTILLA-LA MANCHA | B72: 108820511.1 | D72: CASTILLA-LA MANCHA | E72: 103277001.6 | G72: CASTILLA-LA MANCHA | H72: 0.05367612717 | I72: 0.05367612717
A73: CASTILLA Y LEÓN | B73: 125158526.8 | D73: CASTILLA Y LEÓN | E73: 149447152 | G73: CASTILLA Y LEÓN | H73: -0.1625231724 | I73: -0.1625231724
A74: CATALUÑA | B74: 458007236 | D74: CATALUÑA | E74: 579479966.7 | G74: CATALUÑA | H74: -0.2096236932 | I74: -0.2096236932
A75: COMUNIDAD VALENCIANA | B75: 158863905.5 | D75: COMUNIDAD VALENCIANA | E75: 195389741.7 | G75: COMUNIDAD VALENCIANA | H75: -0.1869383515 | I75: -0.1869383515
A76: EXTREMADURA | B76: 18024224.32 | D76: EXTREMADURA | E76: 14950140.23 | G76: EXTREMADURA | H76: 0.2056224254 | I76: 0.2056224254
A77: GALICIA | B77: 116754204.3 | D77: GALICIA | E77: 122362049.6 | G77: GALICIA | H77: -0.04582993899 | I77: -0.04582993899
A78: MADRID | B78: 328177056.5 | D78: MADRID | E78: 387592997.3 | G78: MADRID | H78: -0.1532946705 | I78: -0.1532946705
A79: MURCIA | B79: 151365347 | D79: MURCIA | E79: 148798097.4 | G79: MURCIA | H79: 0.01725324237 | I79: 0.01725324237
A80: NAVARRA | B80: 62326241.59 | D80: NAVARRA | E80: 86095776.48 | G80: NAVARRA | H80: -0.276082473 | I80: -0.276082473
A81: PAIS VASCO | B81: 80802645.28 | D81: PAIS VASCO | E81: 116880744.1 | G81: PAIS VASCO | H81: -0.3086744453 | I81: -0.3086744453
A82: RIOJA (LA) | B82: 18233027.73 | D82: RIOJA (LA) | E82: 22891275.54 | G82: RIOJA (LA) | H82: -0.2034944624 | I82: =B82/E82-1 -> -0.2034944624
A83: Ceuta y Melilla | D83: Ceuta y Melilla | G83: Ceuta y Melilla
